fUST/lending_fUST_20250909
["ID","MTS","AMOUNT","RATE_DAILY","PERIOD"]
[384439257,1757415048557,-535.36,0.00013972,2]
[384439258,1757415048567,-480.0,0.00013972,2]
[384439259,1757415048576,-480.0,0.00013972,2]
[384439260,1757415048585,-453.05574068,0.00013972,2]
[384439261,1757415048594,-480.0,0.00013972,2]
[384439262,1757415048603,-480.0,0.00013972,2]
[384439263,1757415048613,-480.0,0.00013972,2]
[384439264,1757415048623,-480.0,0.00013972,2]
[384439265,1757415048632,-480.0,0.00013972,2]
[384439266,1757415048641,-603.9,0.00013972,2]
[384439267,1757415048650,-151.0,0.00013972,2]
[384439268,1757415048659,-480.0,0.00013972,2]
[384439269,1757415048669,-151.0,0.00013972,2]
[384439270,1757415048679,-480.0,0.00013972,2]
[384439271,1757415048689,-151.0,0.00013972,2]
[384439272,1757415048698,-151.0,0.00013972,2]
[384439273,1757415048707,-151.0,0.00013972,2]
[384439274,1757415048717,-151.0,0.00013972,2]
[384439275,1757415048726,-151.0,0.00013972,2]
[384439276,1757415048735,-489.07,0.00013972,2]
[384439277,1757415048745,-480.0,0.00013972,2]
[384439278,1757415048754,-480.0,0.00013972,2]
[384439279,1757415048763,-485.50177255,0.00013972,2]
[384439280,1757415048773,-819.03,0.00013972,2]
[384439281,1757415048782,-1730.96,0.00013972,2]
[384439282,1757415048791,-570.79,0.00013972,2]
[384439283,1757415048801,-5297.49,0.00013972,2]
[384439284,1757415048811,-480.0,0.00013972,2]
[384439285,1757415048821,-1133.75,0.00013972,2]
[384439286,1757415048829,-480.0,0.00013972,2]
[384439287,1757415048839,-480.0,0.00013972,2]
[384439288,1757415048848,-480.0,0.00013972,2]
[384439289,1757415048857,-676.52,0.00013972,2]
[384439290,1757415048866,-584.55,0.00013972,2]
[384439291,1757415048877,-480.0,0.00013972,2]
[384439292,1757415048886,-480.0,0.00013972,2]
[384439293,1757415048895,-734.82,0.00013972,2]
[384439294,1757415048905,-1344.04,0.00013972,2]
[384439295,1757415048914,-480.0,0.00013972,2]
[384439296,1757415048924,-881.15,0.00013972,2]
[384439297,1757415048934,-480.0,0.00013972,2]
[384439298,1757415048943,-480.0,0.00013972,2]
[384439299,1757415048952,-480.0,0.00013972,2]
[384439300,1757415048961,-480.0,0.00013972,2]
[384439301,1757415048970,-480.0,0.00013972,2]
[384439302,1757415048980,-719.23,0.00013972,2]
[384439303,1757415048989,-2773.53,0.00013972,2]
[384439304,1757415048999,-2322.67,0.00013972,2]
[384439305,1757415049009,-480.0,0.00013972,2]
[384439306,1757415049018,-480.0,0.00013972,2]
[384439307,1757415049028,-834.11,0.00013972,2]
[384439308,1757415049037,-480.0,0.00013972,2]
[384439309,1757415049046,-480.0,0.00013972,2]
[384439310,1757415049056,-846.38,0.00013972,2]
[384439311,1757415049066,-480.0,0.00013972,2]
[384439312,1757415049076,-1388.3,0.00013972,2]
[384439313,1757415049088,-480.0,0.00013972,2]
[384439314,1757415049097,-480.0,0.00013972,2]
[384439315,1757415049107,-480.0,0.00013972,2]
[384439316,1757415049116,-922.51,0.00013972,2]
[384439317,1757415049126,-484.3381013,0.00013972,2]
[384439318,1757415049135,-480.0,0.00013972,2]
[384439319,1757415049144,-480.0,0.00013972,2]
[384439320,1757415049154,-235.55102343,0.00013972,2]
[384439321,1757415049163,-365.41004907,0.00013972,2]
[384439322,1757415049172,-480.0,0.00013972,2]
[384439323,1757415049182,-480.0,0.00013972,2]
[384439324,1757415049191,-881.56,0.00013972,2]
[384439325,1757415049200,-263.05,0.00013972,2]
[384439326,1757415049210,-480.0,0.00013972,2]
[384439327,1757415049219,-13504.96,0.00013972,2]
[384439328,1757415049228,-480.0,0.00013972,2]
[384439329,1757415049237,-480.0,0.00013972,2]
[384439330,1757415049247,-480.0,0.00013972,2]
[384439331,1757415049256,-1527.36,0.00013972,2]
[384439332,1757415049266,-717.84,0.00013972,2]
[384439333,1757415049275,-480.0,0.00013972,2]
[384439334,1757415049284,-783.38,0.00013972,2]
[384439335,1757415049293,-1136.73,0.00013972,2]
[384439336,1757415049304,-868.48,0.00013972,2]
[384439337,1757415049314,-480.0,0.00013972,2]
[384439338,1757415049323,-1177.45,0.00013972,2]
[384439339,1757415049333,-2322.15,0.00013972,2]
[384439340,1757415049343,-243.99611491,0.00013972,2]
[384439341,1757415049354,-480.0,0.00013972,2]
[384439342,1757415049363,-480.0,0.00013972,2]
[384439343,1757415049373,-480.0,0.00013972,2]
[384439344,1757415049383,-480.0,0.00013972,2]
[384439345,1757415049393,-480.0,0.00013972,2]
[384439346,1757415049402,-1573.53,0.00013972,2]
[384439347,1757415049412,-480.0,0.00013972,2]
[384439348,1757415049422,-579.93,0.00013972,2]
[384439349,1757415049432,-480.0,0.00013972,2]
[384439350,1757415049441,-480.0,0.00013972,2]
[384439351,1757415049450,-480.0,0.00013972,2]
[384439352,1757415049459,-480.0,0.00013972,2]
[384439353,1757415049469,-4561.5,0.00013972,2]
[384439354,1757415049478,-480.0,0.00013972,2]
[384439355,1757415049487,-152.345617,0.00013972,2]
[384439356,1757415049496,-918.69,0.00013972,2]
[384439357,1757415049505,-480.0,0.00013972,2]
[384439358,1757415049514,-480.0,0.00013972,2]
[384439359,1757415049523,-151.0,0.00013972,2]
[384439360,1757415049532,-151.0,0.00013972,2]
[384439361,1757415049541,-480.0,0.00013972,2]
[384439362,1757415049550,-482.53494933,0.00013972,2]
[384439363,1757415049559,-509.69,0.00013972,2]
[384439364,1757415049568,-480.0,0.00013972,2]
[384439365,1757415049577,-480.0,0.00013972,2]
[384439366,1757415049586,-480.0,0.00013972,2]
[384439367,1757415049595,-3369.98906239,0.00013972,2]
[384439368,1757415049629,-1175.72093761,0.00013972,2]
[384439369,1757415049638,-480.0,0.00013972,2]
[384439370,1757415049647,-480.0,0.00013972,2]
[384439371,1757415049657,-505.6,0.00013972,2]
[384439372,1757415049667,-480.0,0.00013972,2]
[384439373,1757415049676,-480.0,0.00013972,2]
[384439374,1757415049686,-480.0,0.00013972,2]
[384439375,1757415049695,-2508.68,0.00013972,2]
[384439376,1757415049704,-1003.81,0.00013972,2]
[384439377,1757415049715,-480.0,0.00013972,2]
[384439378,1757415049725,-935.94,0.00013972,2]
[384439379,1757415049735,-480.0,0.00013972,2]
[384439380,1757415049745,-480.0,0.00013972,2]
[384439381,1757415049754,-2134.29,0.00013972,2]
[384439382,1757415049763,-540.31,0.00013972,2]
[384439383,1757415049772,-480.0,0.00013972,2]
[384439384,1757415049782,-151.0,0.00013972,2]
[384439385,1757415049792,-819.33,0.00013972,2]
[384439386,1757415049802,-151.0,0.00013972,2]
[384439387,1757415049811,-480.0,0.00013972,2]
[384439388,1757415049820,-480.0,0.00013972,2]
[384439389,1757415049830,-480.0,0.00013972,2]
[384439390,1757415049839,-151.0,0.00013972,2]
[384439391,1757415049850,-480.0,0.00013972,2]
[384439392,1757415049859,-480.0,0.00013972,2]
[384439393,1757415049869,-480.0,0.00013972,2]
[384439394,1757415049880,-151.0,0.00013972,2]
[384439395,1757415049889,-151.0,0.00013972,2]
[384439396,1757415049899,-480.0,0.00013972,2]
[384439397,1757415049908,-482.17,0.00013972,2]
[384439398,1757415049917,-1748.87,0.00013972,2]
[384439399,1757415049926,-480.0,0.00013972,2]
[384439400,1757415049937,-500.0,0.00013973,2]
[384439401,1757415049946,-82881.41807471,0.0001399,2]
[384439402,1757415049957,-1011.63711006,0.0001399,2]
[384439404,1757415085994,1000.0,0.00018595,20]
[384439409,1757415239287,300.0,0.00013158,2]
[384439410,1757415263813,300.0,0.00013158,2]
[384439411,1757415280045,300.0,0.00013158,2]
[384439412,1757415288787,300.0,0.00013158,2]
[384439413,1757415306453,300.0,0.00013158,2]
[384439414,1757415314962,300.0,0.00013158,2]
[384439415,1757415331962,300.0,0.00013158,2]
[384439416,1757415340411,300.0,0.00013158,2]
[384439417,1757415348916,231.09252578,0.00013255,2]
[384439419,1757415356095,300.0,0.00013158,2]
[384439421,1757415364618,300.0,0.00013158,2]
[384439422,1757415379889,300.0,0.00013158,2]
[384439423,1757415388731,300.0,0.00013158,2]
[384439425,1757415397386,300.0,0.00013158,2]
[384439428,1757415468741,653.99249514,0.00013252,2]
[384439429,1757415492699,546.00750486,0.00013252,2]
[384439430,1757415516612,653.99249514,0.00013252,2]
[384439431,1757415540090,653.99249514,0.00013252,2]
[384439432,1757415563138,653.99249514,0.00013252,2]
[384439433,1757415585680,653.99249514,0.00013252,2]
[384439434,1757415594911,653.99249514,0.00013252,2]
[384439435,1757415603495,653.99249514,0.00013252,2]
[384439436,1757415620392,168.0,0.0001322,2]
[384439437,1757415629695,168.0,0.0001322,2]
[384439438,1757415645572,168.0,0.0001322,2]
[384439439,1757415653780,168.0,0.0001322,2]
[384439440,1757415671048,168.0,0.0001322,2]
[384439441,1757415679687,168.0,0.0001322,2]
[384439442,1757415695542,168.0,0.0001322,2]
[384439443,1757415704106,168.0,0.0001322,2]
[384439444,1757415719386,168.0,0.0001322,2]
[384439446,1757415727980,168.0,0.0001322,2]
[384439447,1757415743642,168.0,0.0001322,2]
[384439448,1757415751816,168.0,0.0001322,2]
[384439449,1757415768257,168.0,0.0001322,2]
[384439450,1757415776780,168.0,0.0001322,2]
[384439451,1757415780482,2386.26,0.00013286,2]
[384439452,1757415792361,168.0,0.0001322,2]
[384439453,1757415800969,168.0,0.0001322,2]
[384439460,1757415818622,168.0,0.0001322,2]
[384439461,1757415827400,168.0,0.0001322,2]
[384439462,1757415843429,168.0,0.0001322,2]
[384439463,1757415851963,168.0,0.0001322,2]
[384439464,1757415867792,168.0,0.0001322,2]
[384439465,1757415877022,168.0,0.0001322,2]
[384439466,1757415892758,168.0,0.0001322,2]
[384439467,1757415900798,168.0,0.0001322,2]
[384439468,1757415917375,168.0,0.0001322,2]
[384439469,1757415925451,168.0,0.0001322,2]
[384439470,1757415941909,168.0,0.0001322,2]
[384439471,1757415950020,168.0,0.0001322,2]
[384439472,1757415964715,4446.0,0.00013256,2]
[384439473,1757415965194,168.0,0.0001322,2]
[384439474,1757415973945,168.0,0.0001322,2]
[384439475,1757415989149,168.0,0.0001322,2]
[384439476,1757415998155,168.0,0.0001322,2]
[384439477,1757416007581,168.0,0.0001322,2]
[384439479,1757416024768,168.0,0.0001322,2]
[384439480,1757416033454,168.0,0.0001322,2]
[384439481,1757416049037,168.0,0.0001322,2]
[384439482,1757416056966,168.0,0.0001322,2]
[384439483,1757416072759,168.0,0.0001322,2]
[384439484,1757416081447,168.0,0.0001322,2]
[384439485,1757416097014,168.0,0.0001322,2]
[384439486,1757416105729,168.0,0.0001322,2]
[384439487,1757416121371,168.0,0.0001322,2]
[384439488,1757416129981,168.0,0.0001322,2]
[384439489,1757416146172,168.0,0.0001322,2]
[384439490,1757416154773,168.0,0.0001322,2]
[384439491,1757416171067,168.0,0.0001322,2]
[384439492,1757416180505,168.0,0.0001322,2]
[384439493,1757416198075,168.0,0.0001322,2]
[384439494,1757416206560,168.0,0.0001322,2]
[384439495,1757416215812,168.0,0.0001322,2]
[384439510,1757416233451,168.0,0.0001322,2]
[384439517,1757416237458,-168.0,0.00013354,2]
[384439519,1757416237468,-168.0,0.00013489,2]
[384439520,1757416237477,-405.26539315,0.00013605,2]
[384439521,1757416237489,-4040.73460685,0.00013605,2]
[384439522,1757416237498,-168.0,0.00013615,2]
[384439523,1757416237507,-168.0,0.00013616,2]
[384439524,1757416237517,-203.28455737,0.00013662,2]
[384439525,1757416237526,-217.65034598,0.00013662,2]
[384439526,1757416237535,-233.05759179,0.00013662,2]
[384439527,1757416237545,-300.0,0.00013664,2]
[384439528,1757416237554,-530.79566296,0.00013665,2]
[384439529,1757416237564,-160.0,0.00013665,2]
[384439530,1757416237573,-160.0,0.00013665,2]
[384439531,1757416237582,-168.0,0.00013684,2]
[384439532,1757416237592,-160.0,0.00013693,2]
[384439533,1757416237601,-160.0,0.00013693,2]
[384439534,1757416237612,-160.0,0.00013693,2]
[384439535,1757416237622,-846.80158213,0.00013693,2]
[384439536,1757416237632,-500.0,0.00013697,2]
[384439537,1757416237641,-207.78966634,0.00013697,2]
[384439538,1757416237651,-500.0,0.00013697,2]
[384439539,1757416237661,-162.16042115,0.00013697,2]
[384439540,1757416237674,-500.0,0.00013697,2]
[384439541,1757416237684,-500.0,0.00013697,2]
[384439543,1757416237694,-473.90736002,0.00013697,2]
[384439545,1757416237704,-500.0,0.00013697,2]
[384439547,1757416237715,-420.62293294,0.00013697,2]
[384439549,1757416237730,-79.37706706,0.00013697,2]
[384439551,1757416237741,-500.0,0.00013697,2]
[384439553,1757416237752,-500.0,0.00013697,2]
[384439555,1757416237762,-500.0,0.00013697,2]
[384439557,1757416237773,-500.0,0.00013697,2]
[384439559,1757416237783,-333.83011458,0.00013697,2]
[384439597,1757416238680,-166.16988542,0.00013697,2]
[384439599,1757416238689,-500.0,0.00013697,2]
[384439601,1757416238698,-500.0,0.00013697,2]
[384439603,1757416238707,-500.0,0.00013697,2]
[384439605,1757416238717,-500.0,0.00013697,2]
[384439607,1757416238730,-114.68645694,0.00013697,2]
[384439609,1757416238742,-385.31354306,0.00013697,2]
[384439611,1757416238752,-500.0,0.00013697,2]
[384439613,1757416238762,-271.47824342,0.00013697,2]
[384439615,1757416238772,-198.25152766,0.00013697,2]
[384439617,1757416238781,-480.0,0.00013698,2]
[384439621,1757416238791,-480.0,0.00013698,2]
[384439623,1757416238801,-480.0,0.00013698,2]
[384439625,1757416238810,-480.0,0.00013698,2]
[384439627,1757416238819,-480.0,0.00013698,2]
[384439629,1757416238829,-480.0,0.00013698,2]
[384439631,1757416238839,-390.14,0.00013698,2]
[384439633,1757416238849,-541.03,0.00013698,2]
[384439635,1757416238859,-488.59332235,0.00013698,2]
[384439637,1757416238870,-480.0,0.00013698,2]
[384439639,1757416238880,-485.58859282,0.00013698,2]
[384439641,1757416238890,-480.0,0.00013698,2]
[384439643,1757416238901,-480.0,0.00013698,2]
[384439645,1757416238911,-480.0,0.00013698,2]
[384439647,1757416238922,-480.0,0.00013698,2]
[384439649,1757416238932,-480.0,0.00013698,2]
[384439651,1757416238943,-480.0,0.00013698,2]
[384439653,1757416238952,-480.0,0.00013698,2]
[384439655,1757416238962,-480.0,0.00013698,2]
[384439658,1757416238977,-480.0,0.00013698,2]
[384439659,1757416238987,-480.0,0.00013698,2]
[384439662,1757416238999,-480.0,0.00013698,2]
[384439664,1757416239009,-480.0,0.00013698,2]
[384439666,1757416239019,-480.0,0.00013698,2]
[384439668,1757416239029,-574.13,0.00013698,2]
[384439670,1757416239039,-480.0,0.00013698,2]
[384439672,1757416239048,-176.63,0.00013698,2]
[384439673,1757416239059,-480.0,0.00013698,2]
[384439676,1757416239070,-480.0,0.00013698,2]
[384439678,1757416239080,-480.0,0.00013698,2]
[384439680,1757416239090,-480.0,0.00013698,2]
[384439682,1757416239100,-480.0,0.00013698,2]
[384439684,1757416239110,-480.0,0.00013698,2]
[384439686,1757416239120,-480.0,0.00013698,2]
[384439688,1757416239130,-480.0,0.00013698,2]
[384439690,1757416239139,-480.0,0.00013698,2]
[384439692,1757416239149,-480.0,0.00013698,2]
[384439694,1757416239158,-480.0,0.00013698,2]
[384439696,1757416239168,-480.0,0.00013698,2]
[384439698,1757416239179,-480.0,0.00013698,2]
[384439700,1757416239188,-554.05,0.00013698,2]
[384439702,1757416239197,-480.0,0.00013698,2]
[384439704,1757416239206,-480.0,0.00013698,2]
[384439706,1757416239216,-480.0,0.00013698,2]
[384439708,1757416239227,-480.0,0.00013698,2]
[384439710,1757416239236,-662.24,0.00013698,2]
[384439712,1757416239245,-480.0,0.00013698,2]
[384439714,1757416239254,-689.67,0.00013698,2]
[384439716,1757416239263,-480.0,0.00013698,2]
[384439718,1757416239272,-480.0,0.00013698,2]
[384439720,1757416239281,-480.0,0.00013698,2]
[384439722,1757416239291,-480.0,0.00013698,2]
[384439725,1757416239301,-480.0,0.00013698,2]
[384439728,1757416239311,-480.0,0.00013698,2]
[384439730,1757416239320,-219.365,0.00013698,2]
[384439732,1757416239330,-480.0,0.00013698,2]
[384439734,1757416239339,-480.0,0.00013698,2]
[384439736,1757416239349,-663.41,0.00013698,2]
[384439738,1757416239358,-480.0,0.00013698,2]
[384439740,1757416239367,-480.0,0.00013698,2]
[384439742,1757416239377,-770.78,0.00013698,2]
[384439744,1757416239386,-480.0,0.00013698,2]
[384439746,1757416239395,-480.0,0.00013698,2]
[384439748,1757416239404,-480.0,0.00013698,2]
[384439750,1757416239414,-480.0,0.00013698,2]
[384439752,1757416239423,-480.0,0.00013698,2]
[384439754,1757416239432,-480.0,0.00013698,2]
[384439756,1757416239442,-480.0,0.00013698,2]
[384439758,1757416239451,-480.0,0.00013698,2]
[384439760,1757416239461,-480.0,0.00013698,2]
[384439762,1757416239470,-480.0,0.00013698,2]
[384439764,1757416239479,-480.0,0.00013698,2]
[384439765,1757416239488,-583.97,0.00013698,2]
[384439766,1757416239498,-480.0,0.00013698,2]
[384439767,1757416239507,-480.0,0.00013698,2]
[384439768,1757416239517,-574.98,0.00013698,2]
[384439769,1757416239526,-577.47,0.00013698,2]
[384439770,1757416239535,-480.0,0.00013698,2]
[384439771,1757416239545,-480.0,0.00013698,2]
[384439772,1757416239554,-480.0,0.00013698,2]
[384439773,1757416239563,-480.0,0.00013698,2]
[384439774,1757416239572,-482.74,0.00013698,2]
[384439775,1757416239582,-480.0,0.00013698,2]
[384439776,1757416239591,-626.83244417,0.00013698,2]
[384439777,1757416239601,-480.0,0.00013698,2]
[384439778,1757416239611,-480.0,0.00013698,2]
[384439779,1757416239620,-480.0,0.00013698,2]
[384439780,1757416239629,-480.0,0.00013698,2]
[384439781,1757416239638,-585.65754801,0.00013698,2]
[384439782,1757416239648,-480.0,0.00013698,2]
[384439783,1757416239657,-554.53467507,0.00013698,2]
[384439784,1757416239666,-480.0,0.00013698,2]
[384439785,1757416239675,-465.5324891,0.00013698,2]
[384439786,1757416239688,-480.0,0.00013698,2]
[384439787,1757416239697,-480.0,0.00013698,2]
[384439788,1757416239706,-832.33,0.00013698,2]
[384439789,1757416239715,-480.0,0.00013698,2]
[384439790,1757416239726,-480.0,0.00013698,2]
[384439791,1757416239735,-466.35610498,0.00013698,2]
[384439792,1757416239744,-480.0,0.00013698,2]
[384439793,1757416239753,-480.0,0.00013698,2]
[384439794,1757416239763,-488.14018467,0.00013698,2]
[384439795,1757416239772,-480.0,0.00013698,2]
[384439796,1757416239781,-484.98888329,0.00013698,2]
[384439797,1757416239790,-480.0,0.00013698,2]
[384439798,1757416239799,-480.0,0.00013698,2]
[384439799,1757416239808,-480.0,0.00013698,2]
[384439800,1757416239817,-480.0,0.00013698,2]
[384439801,1757416239826,-480.0,0.00013698,2]
[384439802,1757416239835,-357.75608815,0.00013698,2]
[384439803,1757416239845,-532.92,0.00013698,2]
[384439804,1757416239854,-480.0,0.00013698,2]
[384439805,1757416239863,-542.84,0.00013698,2]
[384439806,1757416239872,-480.0,0.00013698,2]
[384439807,1757416239881,-480.0,0.00013698,2]
[384439808,1757416239891,-412.12590199,0.00013698,2]
[384439809,1757416239900,-480.0,0.00013698,2]
[384439810,1757416239909,-480.0,0.00013698,2]
[384439811,1757416239918,-480.0,0.00013698,2]
[384439812,1757416239927,-593.54,0.00013698,2]
[384439813,1757416239936,-480.0,0.00013698,2]
[384439814,1757416239945,-486.24,0.00013698,2]
[384439815,1757416239956,-480.0,0.00013698,2]
[384439816,1757416239965,-480.0,0.00013698,2]
[384439817,1757416239975,-480.0,0.00013698,2]
[384439818,1757416239984,-480.0,0.00013698,2]
[384439819,1757416239993,-5332.68,0.00013698,2]
[384439820,1757416240002,-480.0,0.00013698,2]
[384439821,1757416240011,-480.0,0.00013698,2]
[384439822,1757416240020,-2090.81,0.00013698,2]
[384439823,1757416240030,-1711.45,0.00013698,2]
[384439824,1757416240039,-482.35707183,0.00013698,2]
[384439825,1757416240048,-1140.46,0.00013698,2]
[384439826,1757416240057,-552.9,0.00013698,2]
[384439827,1757416240066,-480.0,0.00013698,2]
[384439828,1757416240075,-732.08,0.00013698,2]
[384439829,1757416240085,-480.0,0.00013698,2]
[384439830,1757416240094,-480.0,0.00013698,2]
[384439831,1757416240103,-480.0,0.00013698,2]
[384439832,1757416240112,-652.96,0.00013698,2]
[384439833,1757416240121,-480.0,0.00013698,2]
[384439834,1757416240131,-480.0,0.00013698,2]
[384439835,1757416240140,-1330.15,0.00013698,2]
[384439836,1757416240149,-480.0,0.00013698,2]
[384439837,1757416240159,-2271.76,0.00013698,2]
[384439838,1757416240168,-480.0,0.00013698,2]
[384439839,1757416240177,-589.49,0.00013698,2]
[384439840,1757416240186,-480.0,0.00013698,2]
[384439841,1757416240195,-195.36803841,0.00013698,2]
[384439842,1757416240204,-598.57,0.00013698,2]
[384439843,1757416240213,-480.0,0.00013698,2]
[384439845,1757416240224,-2764.99,0.00013698,2]
[384439846,1757416240234,-480.0,0.00013698,2]
[384439849,1757416240244,-480.0,0.00013698,2]
[384439851,1757416240253,-480.0,0.00013698,2]
[384439853,1757416240262,-480.0,0.00013698,2]
[384439855,1757416240271,-480.0,0.00013698,2]
[384439857,1757416240281,-480.0,0.00013698,2]
[384439859,1757416240291,-698.68,0.00013698,2]
[384439860,1757416240300,-556.69,0.00013698,2]
[384439862,1757416240309,-807.33,0.00013698,2]
[384439864,1757416240318,-480.0,0.00013698,2]
[384439866,1757416240327,-881.74,0.00013698,2]
[384439868,1757416240336,-1371.93,0.00013698,2]
[384439870,1757416240345,-480.0,0.00013698,2]
[384439871,1757416240354,-480.0,0.00013698,2]
[384439872,1757416240363,-13876.33,0.00013698,2]
[384439873,1757416240372,-480.0,0.00013698,2]
[384439874,1757416240381,-816.14,0.00013698,2]
[384439875,1757416240390,-480.0,0.00013698,2]
[384439876,1757416240400,-480.0,0.00013698,2]
[384439878,1757416240409,-480.0,0.00013698,2]
[384439880,1757416240418,-480.0,0.00013698,2]
[384439882,1757416240427,-767.55,0.00013698,2]
[384439884,1757416240437,-480.0,0.00013698,2]
[384439886,1757416240446,-480.0,0.00013698,2]
[384439888,1757416240455,-480.0,0.00013698,2]
[384439890,1757416240464,-480.0,0.00013698,2]
[384439892,1757416240474,-480.0,0.00013698,2]
[384439894,1757416240483,-480.0,0.00013698,2]
[384439918,1757416240700,-480.0,0.00013698,2]
[384439920,1757416240709,-480.0,0.00013698,2]
[384439922,1757416240718,-480.0,0.00013698,2]
[384439923,1757416240729,-570.28,0.00013698,2]
[384439926,1757416240739,-740.55,0.00013698,2]
[384439928,1757416240749,-1538.07,0.00013698,2]
[384439930,1757416240760,-1096.87,0.00013698,2]
[384439932,1757416240769,-480.0,0.00013698,2]
[384439934,1757416240779,-480.0,0.00013698,2]
[384439936,1757416240787,-480.0,0.00013698,2]
[384439938,1757416240797,-878.15,0.00013698,2]
[384439940,1757416240806,-842.36,0.00013698,2]
[384439942,1757416240815,-480.0,0.00013698,2]
[384439944,1757416240824,-2253.2,0.00013698,2]
[384439946,1757416240833,-480.0,0.00013698,2]
[384439965,1757416240982,-1188.82,0.00013698,2]
[384439967,1757416240992,-1507.78,0.00013698,2]
[384439969,1757416241001,-480.0,0.00013698,2]
[384439971,1757416241011,-480.0,0.00013698,2]
[384439973,1757416241020,-480.0,0.00013698,2]
[384439975,1757416241029,-480.0,0.00013698,2]
[384439977,1757416241038,-566.08777429,0.00013698,2]
[384439979,1757416241047,-480.0,0.00013698,2]
[384439981,1757416241056,-4401.34,0.00013698,2]
[384439983,1757416241066,-484.2803269,0.00013698,2]
[384439985,1757416241075,-398.05,0.00013698,2]
[384439987,1757416241084,-480.0,0.00013698,2]
[384439989,1757416241093,-480.0,0.00013698,2]
[384439991,1757416241102,-592.50287164,0.00013698,2]
[384439993,1757416241111,-480.0,0.00013698,2]
[384439995,1757416241120,-480.0,0.00013698,2]
[384439997,1757416241130,-480.0,0.00013698,2]
[384439999,1757416241139,-480.0,0.00013698,2]
[384440001,1757416241149,-480.0,0.00013698,2]
[384440003,1757416241158,-496.38,0.00013698,2]
[384440005,1757416241167,-480.0,0.00013698,2]
[384440007,1757416241176,-946.2,0.00013698,2]
[384440009,1757416241185,-786.87,0.00013698,2]
[384440011,1757416241195,-480.0,0.00013698,2]
[384440013,1757416241204,-480.0,0.00013698,2]
[384440015,1757416241213,-480.0,0.00013698,2]
[384440017,1757416241223,-4373.34,0.00013698,2]
[384440019,1757416241232,-480.0,0.00013698,2]
[384440021,1757416241242,-480.0,0.00013698,2]
[384440022,1757416241251,-480.0,0.00013698,2]
[384440024,1757416241260,-1039.07,0.00013698,2]
[384440026,1757416241269,-1687.98,0.00013698,2]
[384440028,1757416241279,-489.52296064,0.00013698,2]
[384440030,1757416241288,-937.26,0.00013698,2]
[384440032,1757416241299,-480.0,0.00013698,2]
[384440034,1757416241308,-480.0,0.00013698,2]
[384440036,1757416241317,-480.0,0.00013698,2]
[384440038,1757416241327,-480.0,0.00013698,2]
[384440039,1757416241336,-533.06,0.00013698,2]
[384440041,1757416241345,-480.0,0.00013698,2]